bitfinex/quotes_BTCUSD_20230118
["timestamp","ask_amount","ask_price","bid_price","bid_amount"]
[1674038421515,5.39408333,21209.0,21208.0,0.02020439]
[1674038421742,5.44977568,21209.0,21208.0,0.02020439]
[1674038421994,4.95967725,21209.0,21208.0,0.02020439]
[1674038422244,5.67505126,21209.0,21208.0,0.02020439]
[1674038422516,4.678838,21209.0,21208.0,0.02020439]
[1674038422794,5.3343359,21209.0,21208.0,0.02020439]
[1674038423014,5.30514946,21209.0,21208.0,0.02020439]
[1674038423519,5.29828603,21209.0,21208.0,0.02020439]
[1674038424016,5.99828604,21209.0,21208.0,0.02020439]
[1674038424307,7.86128852,21209.0,21208.0,0.02020439]
[1674038424537,8.15208852,21209.0,21208.0,0.02020439]
[1674038424799,8.15208852,21209.0,21195.0,0.28217506]
[1674038424800,0.03152041,21207.0,21195.0,0.28217506]
[1674038425049,0.111,21201.0,21196.0,0.19072595]
[1674038425354,0.111,21201.0,21199.0,0.1102]
[1674038425355,0.471699,21200.0,21199.0,0.1102]
[1674038425575,0.471684,21201.0,21199.0,0.1102]
[1674038425806,0.35238876,21203.0,21200.0,0.1108]
[1674038426070,0.471589,21205.0,21202.0,0.222]
[1674038426315,0.471589,21205.0,21202.0,0.30172595]
[1674038426596,0.721589,21205.0,21202.0,0.30172595]
[1674038426820,0.721589,21205.0,21202.0,0.111]
[1674038427330,0.803589,21205.0,21202.0,0.112]
[1674038427819,0.83765022,21204.0,21202.0,0.001]
[1674038428064,2.20211945,21203.0,21202.0,0.001]
[1674038428318,3.42684356,21203.0,21202.0,0.001]
[1674038428571,3.67684356,21203.0,21195.0,1.202303]
[1674038428821,2.01349635,21202.0,21195.0,1.39302895]
[1674038429101,2.01349635,21202.0,21197.0,0.1099]
[1674038429102,0.4717,21200.0,21197.0,0.1099]
[1674038429384,0.4717,21200.0,21196.0,0.45172595]
[1674038429385,1.3192979,21202.0,21198.0,0.111]
[1674038429601,1.67478618,21202.0,21198.0,0.30172595]
[1674038429863,0.25,21200.0,21198.0,0.30172595]
[1674038430111,0.258,21200.0,21198.0,0.111]
[1674038430421,0.25,21200.0,21198.0,0.111]
[1674038430619,0.25,21200.0,21198.0,0.119]
[1674038430859,0.25,21200.0,21198.0,0.111]
[1674038431124,0.258,21200.0,21198.0,0.008]
[1674038431381,0.81736047,21199.0,21198.0,0.008]
[1674038431643,2.71748855,21199.0,21198.0,0.008]
[1674038432148,0.91017378,21199.0,21198.0,0.008]
[1674038432402,1.53908047,21199.0,21197.0,0.111]
[1674038432652,0.59815878,21199.0,21197.0,0.111]
[1674038433172,0.65415878,21199.0,21198.0,0.001]
[1674038433675,1.56058438,21199.0,21195.0,0.3841]
[1674038433927,1.55558438,21199.0,21195.0,0.582803]
[1674038434174,1.49926754,21199.0,21195.0,0.582803]
[1674038434438,1.40926754,21199.0,21195.0,0.582803]
[1674038435688,1.41326754,21199.0,21197.0,0.1107]
[1674038435941,0.58915878,21199.0,21197.0,0.1107]
[1674038436480,0.47720169,21198.0,21195.0,0.111]
[1674038436773,0.67415878,21199.0,21196.0,0.1099]
[1674038437029,1.14588278,21199.0,21196.0,0.1099]
[1674038437275,0.89588278,21199.0,21196.0,0.1099]
[1674038437526,1.26137666,21199.0,21196.0,0.1099]
[1674038437795,1.61376542,21199.0,21196.0,0.1099]
[1674038438081,1.67376542,21199.0,21195.0,0.73803395]
[1674038438350,0.35238876,21198.0,21193.0,1.287867]
[1674038438600,1.0386823,21198.0,21193.0,1.29376212]
[1674038438868,1.1886823,21198.0,21193.0,1.29376212]
[1674038439125,0.36449015,21197.0,21193.0,0.47772612]
[1674038439412,1.47702992,21197.0,21193.0,0.55342612]
[1674038439689,0.82625715,21197.0,21194.0,7.506e-05]
[1674038439964,0.60449015,21197.0,21195.0,0.32283]
[1674038440218,0.60449015,21197.0,21194.0,7.506e-05]
[1674038440488,0.61349015,21197.0,21194.0,7.506e-05]
[1674038440777,0.75449015,21197.0,21194.0,7.506e-05]
[1674038441047,0.60449015,21197.0,21193.0,1.02526712]
[1674038441294,0.60449015,21197.0,21193.0,1.02528412]
[1674038441566,0.60449015,21197.0,21194.0,0.32479]
[1674038441813,0.60849015,21197.0,21195.0,0.001]
[1674038442064,0.60449015,21197.0,21193.0,1.02528412]
[1674038442329,0.96587891,21197.0,21193.0,0.55443112]
[1674038442580,0.95687891,21197.0,21194.0,0.321149]
[1674038442831,0.60849015,21197.0,21195.0,0.001]
[1674038443083,0.96086497,21197.0,21195.0,0.001]
[1674038443340,1.07625915,21197.0,21193.0,0.55343112]
[1674038443597,1.90941191,21197.0,21193.0,0.08259512]
[1674038443840,1.90041191,21197.0,21193.0,0.08159512]
[1674038444097,2.11479787,21197.0,21193.0,0.08159512]
[1674038444868,0.96087891,21197.0,21195.0,0.001]
[1674038445109,0.96087891,21197.0,21193.0,0.74416907]
[1674038445110,0.60449015,21197.0,21193.0,0.74416907]
[1674038445365,0.95687891,21197.0,21193.0,0.55344312]
[1674038445991,0.96087891,21197.0,21195.0,0.001]
[1674038446109,0.60449015,21197.0,21193.0,0.55344312]
[1674038446359,0.96587891,21197.0,21193.0,0.55444312]
[1674038446617,0.61349015,21197.0,21194.0,0.49072595]
[1674038446866,0.259,21197.0,21195.0,0.375566]
[1674038447121,0.259,21197.0,21196.0,0.129847]
[1674038447374,0.259,21197.0,21196.0,0.10066]
[1674038447667,0.25,21197.0,21196.0,0.10066]
[1674038448440,0.31,21197.0,21196.0,1.119634]
[1674038448693,0.31,21197.0,21196.0,1.443146]
[1674038448924,0.31,21197.0,21196.0,1.743146]
[1674038449203,0.31,21197.0,21196.0,1.74322426]
[1674038450723,0.31,21197.0,21196.0,1.81892426]
[1674038451019,0.31,21197.0,21196.0,1.86487129]
[1674038451257,0.31,21197.0,21196.0,1.87337129]
[1674038451509,0.25,21197.0,21196.0,1.87337129]
[1674038451790,0.258,21197.0,21196.0,1.88137129]
[1674038452031,0.25,21197.0,21196.0,1.87337129]
[1674038452347,0.258,21197.0,21196.0,1.88137129]
[1674038452561,0.25,21197.0,21196.0,1.818846]
[1674038452793,0.258,21197.0,21196.0,1.826846]
[1674038453045,0.258,21197.0,21196.0,1.751146]
[1674038454569,0.25742445,21197.0,21196.0,1.751146]
[1674038456355,0.25742445,21197.0,21196.0,1.75122426]
[1674038456883,0.25742445,21197.0,21196.0,1.82652426]
[1674038457125,0.25742445,21197.0,21196.0,1.93940144]
[1674038457374,0.25742445,21197.0,21196.0,1.82652426]
[1674038457624,0.25742445,21197.0,21196.0,1.93940144]
[1674038458622,0.25742445,21197.0,21196.0,2.10869932]
[1674038458866,0.25742445,21197.0,21196.0,2.2336468]
[1674038459141,0.25742445,21197.0,21196.0,2.2421468]
[1674038459645,0.25742445,21197.0,21196.0,2.11719932]
[1674038459913,0.25742445,21197.0,21196.0,1.94790144]
[1674038460407,0.25742445,21197.0,21196.0,2.11719932]
[1674038460925,0.25742445,21197.0,21196.0,2.24213693]
[1674038461234,0.25742445,21197.0,21196.0,2.35500048]
[1674038461458,0.25742445,21197.0,21196.0,2.40094751]
[1674038462490,0.25742445,21197.0,21196.0,2.17520678]
[1674038462757,0.25742445,21197.0,21196.0,2.28795778]
[1674038462997,0.25742445,21197.0,21196.0,2.16304375]
[1674038463266,0.25742445,21197.0,21196.0,2.28800361]
[1674038463542,0.25742445,21197.0,21196.0,2.16304227]
[1674038463827,0.25742445,21197.0,21196.0,2.28696857]
[1674038464103,0.25742445,21197.0,21196.0,2.39985794]
[1674038465208,0.25742445,21197.0,21196.0,2.17411721]
[1674038465491,0.25742445,21197.0,21196.0,2.16302327]
[1674038466000,0.25742445,21197.0,21196.0,2.17409975]
[1674038466263,0.25742445,21197.0,21196.0,2.18627097]
[1674038466568,0.25742445,21197.0,21196.0,1.32103303]
[1674038466843,0.25742445,21197.0,21196.0,0.99752103]
[1674038467381,0.25742445,21197.0,21196.0,0.951574]
[1674038468707,0.25742445,21197.0,21196.0,1.251574]
[1674038469265,0.25742445,21197.0,21196.0,0.951574]
[1674038469800,0.25742445,21197.0,21196.0,1.251574]
[1674038471120,0.25742445,21197.0,21196.0,0.951574]
[1674038471374,0.25742445,21197.0,21196.0,1.251574]
[1674038473123,0.24642445,21197.0,21196.0,0.951574]
[1674038473386,0.23542445,21197.0,21196.0,0.951574]
[1674038473880,0.22422445,21197.0,21196.0,0.951574]
[1674038475160,0.22422445,21197.0,21196.0,0.951574]
[1674038475657,0.22422445,21197.0,21196.0,1.251574]
[1674038476682,0.22422445,21197.0,21196.0,0.951574]
[1674038477454,0.22422445,21197.0,21196.0,1.251574]
[1674038477961,0.22062445,21197.0,21196.0,1.251574]
[1674038478716,0.21762445,21197.0,21196.0,1.251574]
[1674038478971,0.21762445,21197.0,21196.0,0.951574]
[1674038479233,0.21522445,21197.0,21196.0,0.951574]
[1674038479998,0.21522445,21197.0,21196.0,0.479787]
[1674038480508,0.21522445,21197.0,21196.0,0.008]
[1674038481561,0.21522445,21197.0,21196.0,0.479787]
[1674038481820,0.21522445,21197.0,21196.0,0.779787]
[1674038482898,0.21522445,21197.0,21196.0,1.327274]
[1674038483150,0.21522445,21197.0,21196.0,1.629084]
[1674038483462,0.21522445,21197.0,21196.0,1.62922018]
[1674038484975,0.21522445,21197.0,21196.0,1.7420514]
[1674038485236,0.0449065,21197.0,21196.0,2.26797817]
[1674038485500,0.0449065,21197.0,21196.0,1.98759828]
[1674038485777,0.0449065,21197.0,21196.0,2.26797817]
[1674038486622,0.0449065,21197.0,21196.0,2.08818447]
[1674038486894,0.0449065,21197.0,21196.0,2.04223744]
[1674038487164,0.03728062,21197.0,21196.0,2.22324303]
[1674038487463,0.008,21197.0,21196.0,1.94741488]
[1674038487723,0.0021,21197.0,21196.0,1.94741488]
[1674038489048,0.0021,21197.0,21196.0,2.23521488]
[1674038489575,0.0021,21197.0,21196.0,1.94821488]
[1674038490652,0.0021,21197.0,21196.0,1.90226785]
[1674038490914,0.0021,21197.0,21196.0,1.77891529]
[1674038492288,0.0021,21197.0,21196.0,2.07891529]
[1674038492551,0.0021,21197.0,21196.0,2.24833845]
[1674038493301,0.0021,21197.0,21196.0,1.64633852]
[1674038493591,0.0021,21197.0,21196.0,1.38138598]
[1674038494408,0.10296,21197.0,21196.0,1.26844181]
[1674038494673,0.10296,21197.0,21196.0,0.479787]
[1674038495204,0.0021,21197.0,21196.0,0.479787]
[1674038495769,0.0021,21197.0,21196.0,0.951574]
[1674038496041,0.0021,21197.0,21196.0,1.251574]
[1674038496843,0.0021,21197.0,21196.0,1.58091]
[1674038497150,0.0021,21197.0,21196.0,1.58104618]
[1674038499208,0.0021,21197.0,21196.0,1.69399035]
[1674038499478,0.0021,21197.0,21196.0,1.58104618]
[1674038499739,0.0021,21197.0,21196.0,1.69255417]
[1674038500007,0.0021,21197.0,21196.0,1.69269035]
[1674038500264,0.0021,21197.0,21196.0,1.69255417]
[1674038500533,0.0021,21197.0,21196.0,1.57961]
[1674038501639,0.70884282,21200.0,21197.0,0.01159]
[1674038501893,0.35651468,21200.0,21197.0,0.20231595]
[1674038502159,0.70884282,21200.0,21197.0,0.20231595]
[1674038502431,0.70884282,21200.0,21197.0,0.01159]
[1674038502953,0.71684282,21200.0,21197.0,0.02659]
[1674038503506,0.322668,21199.0,21197.0,0.02659]
[1674038503774,0.36451468,21200.0,21197.0,0.81267863]
[1674038504289,0.36451468,21200.0,21197.0,0.51267863]
[1674038504856,0.36451468,21200.0,21197.0,0.04091463]
[1674038505128,0.36451468,21200.0,21197.0,1.47516558]
[1674038505391,0.36451468,21200.0,21197.0,0.98443963]
[1674038506972,0.36451468,21200.0,21198.0,0.3]
[1674038507234,0.008,21200.0,21198.0,1.243459]
[1674038507804,0.008,21200.0,21199.0,0.323939]
[1674038507825,0.008,21200.0,21198.0,1.243459]
[1674038508077,0.34523135,21201.0,21199.0,0.47172]
[1674038508344,0.008,21200.0,21199.0,0.47172]
[1674038508890,0.0026,21200.0,21199.0,0.47172]
[1674038509167,0.34523135,21201.0,21199.0,0.47172]
[1674038509425,0.003,21200.0,21199.0,0.49072]
[1674038509691,0.34363135,21201.0,21199.0,1.26244]
[1674038509948,0.24,21202.0,21199.0,1.26244]
[1674038510218,0.24,21202.0,21200.0,0.49072595]
[1674038510498,0.24,21202.0,21201.0,0.774731]
[1674038510760,0.24,21202.0,21201.0,1.546406]
[1674038511030,0.003,21201.0,21200.0,0.471678]
[1674038511294,0.50314522,21202.0,21200.0,0.471678]
[1674038511895,0.57214522,21202.0,21201.0,0.002]
[1674038512158,0.56884522,21202.0,21200.0,0.471678]
[1674038512429,0.62384522,21202.0,21200.0,0.473678]
[1674038517744,0.62384522,21202.0,21200.0,0.26147114]
[1674038518517,0.62384522,21202.0,21200.0,0.73316914]
[1674038518518,0.3574,21202.0,21200.0,0.73316914]
[1674038518774,0.3574,21202.0,21201.0,0.3]
[1674038519023,0.3574,21202.0,21201.0,0.471675]
[1674038519317,0.3574,21202.0,21201.0,0.771675]
[1674038519800,0.3574,21202.0,21201.0,0.471675]
[1674038520538,0.2334,21202.0,21201.0,0.473675]
[1674038520785,0.3024,21202.0,21201.0,0.473675]
[1674038521032,0.3024,21202.0,21201.0,1.24535]
[1674038522068,0.3024,21202.0,21201.0,0.46862994]
[1674038522313,0.3024,21202.0,21201.0,0.002]
[1674038522560,0.99965766,21202.0,21201.0,0.002]
[1674038523117,1.94311255,21202.0,21201.0,0.002]
[1674038523585,0.64697,21202.0,21201.0,0.002]
[1674038523833,1.22535766,21202.0,21201.0,0.002]
[1674038524079,2.16881259,21202.0,21201.0,0.002]
[1674038524594,2.52850453,21202.0,21201.0,0.002]
[1674038524831,2.64101237,21202.0,21201.0,0.002]
[1674038525322,2.28132043,21202.0,21201.0,0.002]
[1674038525573,1.66612493,21202.0,21201.0,0.002]
[1674038526084,2.01882084,21202.0,21201.0,0.002]
[1674038526327,2.01882057,21202.0,21201.0,0.002]
[1674038526816,1.07535766,21202.0,21201.0,0.002]
[1674038527568,1.07535766,21202.0,21201.0,0.29338595]
[1674038527569,0.64697,21202.0,21201.0,0.29338595]
[1674038527807,0.64697,21202.0,21201.0,0.10266]
[1674038527808,0.3024,21202.0,21201.0,0.10266]
[1674038528299,0.3024,21202.0,21201.0,0.40266]
[1674038529037,0.2825,21202.0,21201.0,1.04601]
[1674038529774,0.2825,21202.0,21201.0,0.002]
[1674038531070,0.2825,21202.0,21201.0,1.34601]
[1674038531316,0.2685,21202.0,21201.0,1.660844]
[1674038531583,0.2685,21202.0,21201.0,1.34601]
[1674038532105,0.2685,21202.0,21201.0,1.34614614]
[1674038532334,0.2581,21202.0,21201.0,1.34614614]
[1674038533105,0.2581,21202.0,21201.0,1.65803314]
[1674038534336,0.2581,21202.0,21201.0,1.34614614]
[1674038536097,0.246514,21202.0,21201.0,1.66059914]
[1674038536841,0.246514,21202.0,21201.0,1.73629914]
[1674038537866,0.246514,21202.0,21201.0,1.92702509]
[1674038538185,0.242414,21202.0,21201.0,1.73629914]
[1674038543151,0.242414,21202.0,21201.0,1.66059914]
[1674038545143,0.242414,21202.0,21201.0,1.660463]
[1674038546652,0.239914,21202.0,21201.0,1.660463]
[1674038548887,0.239914,21202.0,21201.0,1.559803]
[1674038549135,0.230014,21202.0,21201.0,1.259803]
[1674038549389,0.230014,21202.0,21201.0,0.94535]
[1674038551916,0.230014,21202.0,21201.0,1.24535]
[1674038552901,0.230014,21202.0,21201.0,1.574594]
[1674038553152,0.223314,21202.0,21201.0,1.24535]
[1674038553892,0.223314,21202.0,21201.0,1.574594]
[1674038554145,0.223314,21202.0,21201.0,1.68753817]
[1674038554884,0.217614,21202.0,21201.0,1.85696133]
[1674038555625,0.217614,21202.0,21201.0,1.68753817]
[1674038556115,0.213514,21202.0,21201.0,1.68753817]
[1674038556363,0.213514,21202.0,21201.0,2.17053904]
[1674038556613,0.213514,21202.0,21201.0,1.95706496]
[1674038556884,0.213514,21202.0,21201.0,2.37120258]
[1674038557130,0.213514,21202.0,21201.0,2.37970258]
[1674038557373,0.144514,21202.0,21201.0,2.15180265]
[1674038557626,0.152514,21202.0,21201.0,2.16080265]
[1674038557868,0.142014,21202.0,21201.0,2.37770823]
[1674038558161,0.150014,21202.0,21201.0,2.10433771]
[1674038558412,0.150014,21202.0,21201.0,2.38670823]
[1674038559182,0.150014,21202.0,21201.0,2.16080265]
[1674038559455,0.145214,21202.0,21201.0,2.16080265]
[1674038559671,0.145214,21202.0,21201.0,2.38666513]
[1674038559918,0.145214,21202.0,21201.0,2.27368942]
[1674038560436,0.145214,21202.0,21201.0,2.10429461]
[1674038561172,0.145214,21202.0,21201.0,2.38666513]
[1674038561417,0.145214,21202.0,21201.0,2.10429461]
[1674038561666,0.142614,21202.0,21201.0,2.38666513]
[1674038562143,0.142614,21202.0,21201.0,2.10429461]
[1674038563167,0.140614,21202.0,21201.0,2.10429461]
[1674038563412,0.11580838,21202.0,21201.0,2.16080265]
[1674038564177,0.11580838,21202.0,21201.0,2.38659718]
[1674038564500,0.11580838,21202.0,21201.0,2.10422666]
[1674038564700,0.11580838,21202.0,21201.0,2.38659718]
[1674038564940,0.11580838,21202.0,21201.0,2.16080265]
[1674038565185,0.11580838,21202.0,21201.0,1.87843213]
[1674038565422,0.11580838,21202.0,21201.0,2.16070707]
[1674038566675,0.11580838,21202.0,21201.0,1.87843213]
[1674038567407,0.11580838,21202.0,21201.0,2.16075665]
[1674038568461,0.11580838,21202.0,21201.0,2.38663546]
[1674038568699,0.11580838,21202.0,21201.0,2.16075665]
[1674038569936,0.11270838,21202.0,21201.0,2.10429347]
[1674038570177,0.11270838,21202.0,21201.0,2.02889347]
[1674038570428,0.10960838,21202.0,21201.0,2.31121799]
[1674038571680,0.10960838,21202.0,21201.0,2.31123622]
[1674038572174,0.10960838,21202.0,21201.0,2.31123806]
[1674038572415,0.10960838,21202.0,21201.0,2.08535665]
[1674038573158,0.10960838,21202.0,21201.0,1.80303213]
[1674038573393,0.10960838,21202.0,21201.0,2.08537886]
[1674038573394,0.10290838,21202.0,21201.0,2.08537886]
[1674038574382,0.09790838,21202.0,21201.0,2.08537886]
[1674038574671,0.09790838,21202.0,21201.0,1.80303213]
[1674038575128,0.09330838,21202.0,21201.0,1.80303213]
[1674038577389,0.09030838,21202.0,21201.0,1.80303213]
[1674038577881,0.08730838,21202.0,21201.0,2.08534821]
[1674038578632,0.08730838,21202.0,21201.0,1.80303213]
[1674038579137,0.08520838,21202.0,21201.0,1.80303213]
[1674038582426,0.08210838,21202.0,21201.0,1.80303213]
[1674038583178,0.08210838,21202.0,21201.0,1.87873213]
[1674038583415,0.06906004,21202.0,21201.0,1.87873213]
[1674038584145,0.06646004,21202.0,21201.0,1.87873213]
[1674038584897,0.06646004,21202.0,21201.0,1.77873213]
[1674038586159,0.05096004,21202.0,21201.0,1.77873213]
[1674038589213,0.05096004,21202.0,21201.0,2.06105689]
[1674038589719,0.05096004,21202.0,21201.0,1.77873213]
[1674038591684,0.04916004,21202.0,21201.0,1.77873213]
[1674038591931,0.04736004,21202.0,21201.0,2.11556512]
[1674038592180,0.04736004,21202.0,21201.0,1.77873213]
[1674038592438,0.04736004,21202.0,21201.0,2.11556512]
[1674038592935,0.04736004,21202.0,21201.0,2.16027543]
[1674038593714,0.04736004,21202.0,21201.0,2.11556512]
[1674038593933,0.04736004,21202.0,21201.0,1.77873213]
[1674038594176,0.04736004,21202.0,21201.0,2.11556512]
[1674038594667,0.04236004,21202.0,21201.0,2.11556512]
[1674038595425,0.04236004,21202.0,21201.0,1.77873213]
[1674038595958,0.04236004,21202.0,21201.0,1.44948813]
[1674038596197,0.04236004,21202.0,21201.0,1.71102112]
[1674038596459,0.04236004,21202.0,21201.0,1.37418813]
[1674038596695,0.04236004,21202.0,21201.0,1.74602112]
[1674038596948,0.04236004,21202.0,21201.0,2.07254312]
[1674038598929,0.04089766,21202.0,21201.0,2.07254312]
[1674038599441,0.04089766,21202.0,21201.0,2.06012694]
[1674038599675,0.04089766,21202.0,21201.0,1.78528127]
[1674038600437,0.04089766,21202.0,21201.0,1.74057096]
[1674038600680,0.03549766,21202.0,21201.0,2.07976433]
[1674038600983,0.03549766,21202.0,21201.0,1.74057096]
[1674038601459,0.03009766,21202.0,21201.0,1.74057096]
[1674038601956,0.03009766,21202.0,21201.0,1.66042819]
[1674038602203,0.14069766,21202.0,21201.0,0.99471282]
[1674038602488,0.14069766,21202.0,21201.0,1.39045582]
[1674038603257,0.14069766,21202.0,21201.0,1.16428983]
[1674038604000,0.13809766,21202.0,21201.0,1.26006667]
[1674038604245,0.48172166,21202.0,21201.0,1.26003978]
[1674038604489,0.48172166,21202.0,21201.0,1.13495397]
[1674038604979,0.48172166,21202.0,21201.0,0.96537696]
[1674038605471,0.48172166,21202.0,21201.0,1.43495397]
[1674038606029,0.48172166,21202.0,21201.0,0.96537696]
[1674038606259,0.48172166,21202.0,21201.0,0.85235]
[1674038607292,0.47172166,21202.0,21201.0,0.85235]
[1674038607782,0.46372166,21202.0,21201.0,0.84335]
[1674038608021,0.50972166,21202.0,21201.0,0.84435]
[1674038609804,0.62092166,21202.0,21201.0,0.001]
[1674038610038,1.08174374,21202.0,21201.0,0.001]
[1674038610535,1.74834374,21202.0,21201.0,0.001]
[1674038610792,1.73914374,21202.0,21201.0,0.001]
[1674038611547,2.21079674,21202.0,21201.0,0.001]
[1674038613819,2.68244974,21202.0,21201.0,0.001]
[1674038614338,3.28244974,21202.0,21201.0,0.001]
[1674038615827,3.75655191,21202.0,21201.0,0.001]
[1674038616827,3.28244974,21202.0,21201.0,0.001]
[1674038617344,3.60132787,21202.0,21201.0,0.001]
[1674038617584,4.07852956,21202.0,21201.0,0.001]
[1674038617829,0.44667684,21201.0,21194.0,0.471819]
[1674038618087,0.2213,21195.0,21194.0,0.471819]
[1674038618328,0.534479,21195.0,21194.0,0.471819]
[1674038618823,0.528079,21195.0,21194.0,0.471819]
[1674038619319,0.528079,21195.0,21193.0,0.47198625]
[1674038619573,0.2224,21194.0,21193.0,0.47199225]
[1674038619832,0.2224,21194.0,21193.0,0.94382825]
[1674038620345,0.2224,21194.0,21193.0,0.47199225]
[1674038620346,0.218,21194.0,21193.0,0.47199225]
[1674038621332,0.223,21194.0,21193.0,0.47199225]
[1674038621589,0.532466,21194.0,21193.0,0.00015425]
[1674038621845,0.642666,21194.0,21193.0,0.00015425]
[1674038622588,0.99308808,21194.0,21193.0,0.00015425]
[1674038623069,0.88628808,21194.0,21193.0,0.00015425]
[1674038625581,1.22410957,21194.0,21193.0,0.00015425]
[1674038626808,1.22410957,21194.0,21192.0,0.01193189]
[1674038627070,0.436249,21193.0,21192.0,0.01193189]
[1674038627352,0.46162208,21193.0,21192.0,0.01193189]
[1674038628589,0.1112,21193.0,21192.0,0.01193189]
[1674038629340,0.1112,21193.0,21192.0,0.78380789]
[1674038629646,0.1112,21195.0,21192.0,1.25568389]
[1674038629840,0.1112,21195.0,21192.0,1.44640984]
[1674038630090,0.24,21193.0,21192.0,1.25568389]
[1674038630331,0.25,21193.0,21192.0,1.25568389]
[1674038630595,0.24,21193.0,21192.0,1.25568389]
[1674038630820,0.24,21193.0,21192.0,1.58509389]
[1674038631313,0.25,21193.0,21192.0,1.58509389]
[1674038631565,0.25,21193.0,21192.0,1.25568389]
[1674038633775,0.25,21193.0,21192.0,1.57255889]
[1674038634034,0.25,21193.0,21192.0,1.24568389]
[1674038635741,0.25,21193.0,21192.0,1.25933505]
[1674038636039,0.25,21193.0,21192.0,1.58663705]
[1674038636281,0.2433,21193.0,21192.0,1.58663705]
[1674038638056,0.2433,21193.0,21192.0,1.80903705]
[1674038638300,0.2433,21193.0,21192.0,1.81753705]
[1674038639538,0.20747279,21193.0,21192.0,1.92783705]
[1674038641260,0.20747279,21193.0,21192.0,1.81663705]
[1674038641482,0.01,21193.0,21192.0,1.81663705]
[1674038642501,0.01,21193.0,21192.0,1.80813705]
[1674038642754,0.01,21193.0,21192.0,1.58663705]
[1674038643247,0.01,21193.0,21192.0,1.28663705]
[1674038643509,0.11086,21193.0,21192.0,0.47380789]
[1674038643791,0.22186,21193.0,21192.0,0.47380789]
[1674038644028,0.552541,21193.0,21192.0,0.47380789]
[1674038644277,0.02186,21193.0,21192.0,0.47380789]
[1674038645533,0.02186,21193.0,21192.0,0.94568389]
[1674038646011,0.02186,21193.0,21192.0,1.24568389]
[1674038646258,0.02186,21193.0,21192.0,0.47380789]
[1674038647769,0.12272,21193.0,21192.0,0.00193189]
[1674038648029,0.445844,21193.0,21192.0,0.00193189]
[1674038649072,0.423984,21193.0,21192.0,0.00193189]
[1674038649318,0.21186,21193.0,21192.0,0.00193189]
[1674038649582,0.512878,21193.0,21192.0,0.00193189]
[1674038649804,0.742878,21193.0,21192.0,0.00193189]
[1674038650394,1.20152704,21193.0,21192.0,0.00193189]
[1674038650658,0.854078,21193.0,21192.0,0.00193189]
[1674038651455,1.20152704,21193.0,21192.0,0.00193189]
[1674038651708,1.05352704,21193.0,21192.0,0.00293189]
[1674038651968,0.706078,21193.0,21192.0,0.00293189]
[1674038652187,0.705278,21193.0,21192.0,0.00293189]
[1674038652483,1.05272704,21193.0,21192.0,0.00293189]
[1674038653002,0.604418,21193.0,21192.0,0.10359189]
[1674038653260,0.604418,21193.0,21192.0,0.66553384]
[1674038653261,0.082,21193.0,21192.0,0.66553384]
[1674038653518,0.082,21193.0,21192.0,1.24668389]
[1674038653777,0.082,21193.0,21192.0,1.57609389]
[1674038654562,0.1105,21197.0,21192.0,1.57509389]
[1674038654824,0.30508081,21199.0,21193.0,0.60192595]
[1674038654825,0.76372985,21199.0,21193.0,0.60192595]
[1674038655141,0.76372985,21199.0,21194.0,1.60617195]
[1674038655363,0.76372985,21199.0,21195.0,0.49072595]
[1674038655625,0.76372985,21199.0,21196.0,0.471782]
[1674038655912,0.317927,21198.0,21196.0,0.66250795]
[1674038656172,0.30508081,21199.0,21196.0,0.943569]
[1674038656173,0.65252985,21199.0,21196.0,0.943569]
[1674038656460,0.30508081,21199.0,21196.0,0.67658892]
[1674038657526,0.31208081,21199.0,21196.0,0.67658892]
[1674038657790,0.30508081,21199.0,21196.0,0.67658892]
[1674038658317,0.34708081,21199.0,21196.0,0.67858892]
[1674038658599,0.34708081,21199.0,21196.0,0.20680192]
[1674038658863,0.311896,21198.0,21196.0,0.20680192]
[1674038659308,0.77116007,21199.0,21196.0,0.67858892]
[1674038659561,0.42278081,21199.0,21196.0,0.473787]
[1674038659813,0.77116007,21199.0,21196.0,0.473787]
[1674038660600,0.323828,21198.0,21196.0,0.473787]
[1674038660841,0.321054,21197.0,21196.0,0.002]
[1674038661361,0.0757,21197.0,21196.0,0.002]
[1674038661626,0.19215141,21197.0,21196.0,0.002]
[1674038661895,0.85963467,21197.0,21193.0,0.471836]
[1674038662160,0.98004183,21196.0,21193.0,0.471836]
[1674038662414,0.65677783,21196.0,21193.0,0.471836]
[1674038663257,0.30839857,21196.0,21193.0,0.471836]
[1674038664026,0.30839857,21196.0,21193.0,0.943689]
[1674038664281,0.31539857,21196.0,21193.0,0.960689]
[1674038665314,0.007,21196.0,21194.0,0.31724389]
[1674038665584,0.007,21196.0,21195.0,1.26504]
[1674038665811,0.007,21196.0,21195.0,0.771809]
[1674038666067,0.007,21196.0,21195.0,0.471809]
[1674038667097,0.31675893,21197.0,21195.0,0.471809]
[1674038667332,0.005,21196.0,21195.0,0.487809]
[1674038668078,0.31675893,21197.0,21195.0,0.471809]
[1674038668324,0.32175893,21197.0,21195.0,0.487809]
[1674038668573,0.31675893,21197.0,21195.0,0.471809]
[1674038668822,0.31675893,21197.0,21195.0,0.487809]
[1674038668823,0.005,21196.0,21195.0,0.487809]
[1674038669082,0.31675893,21197.0,21195.0,0.471809]
[1674038670668,0.4501813,21197.0,21195.0,0.487809]
[1674038671137,0.318407,21196.0,21195.0,0.487809]
[1674038671400,0.67013819,21197.0,21195.0,0.487809]
[1674038671673,0.32175893,21197.0,21195.0,0.487809]
[1674038671932,0.34746,21196.0,21195.0,0.016]
[1674038673268,0.34746,21196.0,21194.0,0.471827]
[1674038673542,0.321883,21195.0,21194.0,0.471827]
[1674038673811,0.35337926,21196.0,21194.0,0.471827]
[1674038674074,0.005,21196.0,21194.0,0.471827]
[1674038674358,0.66513819,21197.0,21194.0,0.471827]
[1674038674812,0.66513819,21197.0,21194.0,0.488827]
[1674038674813,0.008,21195.0,21194.0,0.488827]
[1674038674825,0.66513819,21197.0,21194.0,0.471827]
[1674038675043,0.323803,21196.0,21194.0,0.488827]
[1674038675269,0.322174,21195.0,21194.0,0.471827]
[1674038675491,0.66513819,21197.0,21194.0,0.471827]
[1674038675492,0.34837926,21196.0,21194.0,0.471827]
[1674038675716,0.67313819,21197.0,21194.0,0.488827]